bitfinex/quotes_ETHUSD_20241120
["timestamp","ask_amount","ask_price","bid_price","bid_amount"]
[1732094853302,0.55,3123.9,3123.3,3.20166]
[1732094853678,8.35887187,3124.3,3123.2,2.87354999]
[1732094853878,8.35887187,3124.3,3123.5,0.8267]
[1732094854117,0.89682779,3124.3,3124.1,3.20085]
[1732094854279,3.19982,3125.2,3124.0,4.02772]
[1732094854485,3.19972,3125.3,3124.0,4.02772]
[1732094854486,4.03560719,3125.3,3124.5,3.20041]
[1732094854679,3.19992,3125.1,3124.5,3.20041]
[1732094854909,3.19972,3125.3,3124.3,3.2007]
[1732094855155,0.319972,3125.2,3124.6,3.20032]
[1732094855453,3.519772,3125.2,3124.4,3.2006]
[1732094855618,0.6719492,3125.1,3124.4,3.2006]
[1732094855803,3.20013,3124.9,3124.3,3.20071]
[1732094856001,0.55,3125.1,3124.5,3.20049]
[1732094856252,0.55,3124.9,3124.5,3.20049]
[1732094856602,0.55,3124.9,3124.6,3.20035]
[1732094856918,3.74988,3125.2,3124.3,3.20069]
[1732094857248,0.55,3124.6,3124.0,3.20096]
[1732094857454,0.55,3124.4,3123.8,3.20115]
[1732094857652,3.75061,3124.4,3123.8,3.20115]
[1732094857956,3.75061,3124.4,3123.3,3.985]
[1732094857957,0.55,3124.4,3123.3,3.985]
[1732094858244,0.55,3124.4,3124.0,3.20099]
[1732094858245,0.962564,3124.4,3124.0,3.20099]
[1732094859851,0.962564,3124.4,3123.8,3.20122]
[1732094859852,0.962564,3124.4,3124.1,3.20092]
[1732094860056,4.163184,3124.4,3123.8,3.20119]
[1732094861115,0.962564,3124.4,3123.8,3.20119]
[1732094861460,0.962564,3124.4,3124.0,3.20099]
[1732094862460,0.55,3124.6,3124.0,3.20099]
[1732094862655,3.20043,3124.6,3124.0,3.20099]
[1732094862858,0.55,3124.5,3124.0,3.20099]
[1732094863916,3.20024,3124.8,3123.4,3.20158]
[1732094863917,0.55,3124.7,3124.1,3.20088]
[1732094864250,0.55,3124.7,3124.1,3.20085]
[1732094864451,0.55,3124.7,3124.2,3.20081]
[1732094864664,3.7503,3124.7,3124.1,3.20085]
[1732094864847,0.55,3124.5,3124.0,0.7518]
[1732094865020,3.19983,3125.2,3124.7,3.20029]
[1732094865220,3.19961,3125.4,3124.7,3.20029]
[1732094865542,3.19981,3125.2,3124.6,3.2004]
[1732094866146,3.519651,3125.3,3124.7,3.20023]
[1732094866321,0.55,3125.2,3124.7,3.20023]
[1732094866541,3.74959,3125.4,3124.8,3.20019]
[1732094868027,0.55,3125.4,3124.9,3.20009]
[1732094868248,3.19949,3125.5,3125.0,3.19996]
[1732094868466,0.43528322,3125.4,3125.0,3.19996]
[1732094869839,0.55,3125.3,3125.0,3.19996]
[1732094870040,0.55,3125.6,3125.1,3.19989]
[1732094870252,4.124388,3125.6,3124.9,3.20004]
[1732094870461,3.19953,3125.5,3124.9,3.20004]
[1732094870668,0.55,3125.4,3124.9,3.20004]
[1732094870868,0.55,3125.2,3124.7,3.2003]
[1732094871034,1.0174458,3125.4,3124.8,3.20013]
[1732094871227,1.0174458,3125.4,3124.9,3.2001]
[1732094872028,0.55,3125.2,3124.7,3.2003]
[1732094872273,0.55,3125.2,3124.8,3.2002]
[1732094873269,0.55,3125.2,3124.5,3.2005]
[1732094873270,3.19993,3125.1,3124.5,3.2005]
[1732094873575,0.55,3125.0,3124.5,3.2005]
[1732094873731,0.55,3125.0,3124.8,3.20013]
[1732094874073,0.55,3125.0,3124.8,6.40024]
[1732094874228,0.55,3125.0,3124.9,3.2001]
[1732094876331,3.1991,3125.9,3125.3,3.19967]
[1732094877451,3.51911,3125.8,3125.1,3.19982]
[1732094877655,0.55,3125.7,3125.2,3.19978]
[1732094877988,1.276821,3125.7,3125.2,3.19978]
[1732094878284,1.276821,3125.7,3125.1,3.19982]
[1732094878581,0.55,3125.4,3124.9,3.20008]
[1732094879083,0.55,3125.4,3124.7,3.20028]
[1732094879288,0.55,3125.2,3124.7,3.20028]
[1732094879472,0.55,3125.2,3124.8,3.20019]
[1732094879679,0.55,3125.3,3124.8,3.20019]
[1732094880247,3.1998,3125.2,3124.6,3.20038]
[1732094880485,3.1998,3125.2,3124.5,3.20047]
[1732094880486,0.55,3125.1,3124.7,3.2003]
[1732094881588,0.55,3125.1,3124.6,3.2004]
[1732094881954,4.12488,3125.1,3124.4,3.99434]
[1732094882352,0.92498,3125.1,3124.4,3.99434]
[1732094882587,0.55,3124.9,3124.5,3.20049]
[1732094883251,0.55,3124.9,3124.4,0.7938]
[1732094883448,3.75011,3124.9,3124.3,3.20067]
[1732094883759,3.75011,3124.9,3123.9,3.2011]
[1732094883760,0.55,3124.7,3123.9,3.2011]
[1732094884092,0.55,3124.7,3124.0,3.201]
[1732094884093,0.55,3124.5,3124.0,3.201]
[1732094884950,0.55,3124.5,3124.0,3.20095]
[1732094885154,0.55,3124.5,3123.8,3.99889]
[1732094885155,0.55,3124.3,3123.8,3.99889]
[1732094885358,0.55,3124.3,3123.6,3.20136]
[1732094885806,0.9625717,3124.3,3123.6,3.20136]
[1732094886001,0.55,3124.0,3123.6,3.20136]
[1732094886301,0.55,3124.0,3123.7,3.20131]
[1732094886474,0.55,3124.2,3123.3,0.7722]
[1732094886658,0.55,3124.5,3123.9,3.20105]
[1732094887558,3.75053,3124.5,3123.9,3.20105]
[1732094887780,0.55,3124.5,3124.0,3.20096]
[1732094887982,0.55,3124.5,3124.1,3.2009]
[1732094888197,0.55,3124.7,3124.1,3.2009]
[1732094888399,4.070334,3124.7,3124.1,3.2009]
[1732094888600,3.20063,3124.4,3123.8,0.8094]
[1732094888929,3.20063,3124.4,3123.1,6.07543999]
[1732094888930,0.55,3124.1,3123.2,0.8094]
[1732094889104,0.55,3123.7,3123.2,0.8094]
[1732094889266,3.7514,3123.7,3123.1,3.20186]
[1732094890113,3.7514,3123.7,3122.9,4.0115]
[1732094890280,0.55,3123.7,3123.1,3.20186]
[1732094890481,0.55,3123.6,3123.1,3.20186]
[1732094890872,3.75151,3123.6,3123.0,3.20203]
[1732094891065,4.446728,3123.6,3122.7,3.20231]
[1732094891312,0.55,3123.3,3122.7,3.20231]
[1732094891602,0.55,3123.1,3122.7,3.20231]
[1732094891766,3.75177,3123.3,3122.7,3.20231]
[1732094892167,0.55,3123.3,3122.7,3.20231]
[1732094893787,0.55,3123.3,3122.5,2.87354999]
[1732094894013,0.55,3123.5,3122.9,3.20208]
[1732094894438,0.55,3123.6,3123.1,3.20193]
[1732094894590,0.55,3123.7,3123.2,3.20183]
[1732094894932,0.55,3123.7,3123.1,3.20185]
[1732094894933,3.75134,3123.7,3123.1,3.20193]
[1732094895101,4.1584866,3123.7,3123.1,3.20193]
[1732094896040,4.1584866,3123.7,3122.9,3.2021]
[1732094896436,7.3598966,3123.7,3123.0,3.20203]
[1732094896601,0.55,3123.1,3121.9,3.01573359]
[1732094896803,3.75195,3123.1,3122.5,3.20254]
[1732094897997,0.55,3123.1,3122.6,3.20244]
[1732094898422,3.75196,3123.1,3122.6,3.20244]
[1732094899516,3.75196,3123.1,3122.5,3.20254]
[1732094900702,4.44733,3123.1,3122.5,3.20254]
[1732094901808,4.44733,3123.1,3122.6,3.20245]
[1732094902123,3.2015,3123.6,3122.7,3.20235]
[1732094902326,3.2015,3123.6,3122.9,3.20212]
[1732094902918,3.20109,3124.0,3123.1,3.20185]
[1732094903118,3.20071,3124.3,3123.1,3.20185]
[1732094903317,3.2013,3123.8,3123.1,3.20185]
[1732094903537,3.2013,3123.8,3123.2,3.20183]
[1732094903812,3.2013,3123.8,3123.1,3.20185]
[1732094904114,3.20084,3124.2,3123.5,3.20146]
[1732094904533,0.55,3124.1,3123.5,3.20146]
[1732094905051,3.20079,3124.3,3123.6,3.20135]
[1732094905259,3.550852,3124.3,3123.6,3.20135]
[1732094905558,3.20062,3124.4,3123.7,3.20124]
[1732094905714,3.20082,3124.2,3123.6,3.20134]
[1732094906126,3.20018,3124.9,3123.6,3.20134]
[1732094906360,3.20078,3124.3,3123.6,3.20134]
[1732094906560,3.20078,3124.3,3123.4,3.20157]
[1732094906561,3.20096,3124.1,3123.4,3.20157]
[1732094906943,0.55,3124.0,3123.4,3.20157]
[1732094907155,3.20114,3123.9,3123.3,3.20166]
[1732094907457,0.55,3123.8,3123.3,3.20166]
[1732094907665,0.55,3123.8,3123.2,3.98572]
[1732094908470,0.55,3123.8,3123.3,3.20167]
[1732094910771,3.75123,3123.8,3123.2,0.7839]
[1732094911246,3.75123,3123.8,3123.2,3.98573]
[1732094911448,0.55,3123.8,3123.2,3.98573]
[1732094911841,3.75124,3123.8,3123.2,3.98573]
[1732094913366,0.55,3123.6,3123.1,3.20193]
[1732094913691,0.55,3123.6,3122.9,3.99091]
[1732094913828,3.75145,3123.6,3122.9,3.99086]
[1732094914625,3.75145,3123.6,3122.2,5.33]
[1732094914626,0.55,3123.3,3122.7,3.20233]
[1732094914826,3.75181,3123.3,3122.7,3.20233]
[1732094916654,3.75161,3123.5,3122.8,3.20225]
[1732094916847,0.55,3123.3,3122.9,3.20214]
[1732094917043,0.55,3123.6,3122.6,0.824]
[1732094917367,0.55,3122.8,3122.3,3.96744]
[1732094917571,0.925213,3122.8,3122.3,3.96744]
[1732094917750,0.55,3122.8,3122.3,3.20274]
[1732094918174,0.55,3122.9,3122.1,3.99076]
[1732094918486,3.20213,3123.0,3122.2,3.20286]
[1732094918487,0.55,3122.7,3122.2,3.20286]
[1732094919344,3.20256,3122.5,3121.9,3.3452936]
[1732094919550,0.55,3122.4,3121.9,3.3452936]
[1732094920168,0.55,3122.4,3121.9,0.1421836]
[1732094920409,0.55,3122.4,3121.9,3.3453536]
[1732094920962,0.55,3122.6,3122.0,3.20305]
[1732094921167,0.55,3122.4,3121.9,3.3453336]
[1732094921675,3.20217,3122.9,3122.2,3.20278]
[1732094921877,3.20217,3122.9,3121.9,0.1421836]
[1732094921878,0.320213,3123.0,3122.4,3.20264]
[1732094922268,3.522343,3123.0,3122.4,3.20264]
[1732094922856,0.55,3122.9,3121.9,6.21886359]
[1732094923165,0.55,3123.0,3122.4,3.20259]
[1732094923367,0.55,3123.0,3122.0,3.98052]
[1732094923368,3.20181,3123.3,3122.6,3.20245]
[1732094923791,6.07480999,3123.8,3122.6,3.20245]
[1732094923996,3.20181,3123.3,3122.7,3.20235]
[1732094924294,3.20157,3123.5,3122.6,0.7775]
[1732094924598,3.20157,3123.5,3122.9,3.20208]
[1732094924766,3.20136,3123.7,3123.0,3.20202]
[1732094924969,3.20161,3123.5,3122.7,3.20231]
[1732094925596,3.521496,3123.7,3123.1,3.20188]
[1732094925793,3.20115,3123.9,3123.2,3.20178]
[1732094925955,0.55,3123.7,3123.2,3.20178]
[1732094926156,0.320115,3123.8,3123.1,3.20188]
[1732094926157,0.320115,3123.8,3123.3,3.20167]
[1732094927221,3.20221,3122.9,3122.1,3.20288]
[1732094927421,0.55,3122.9,3122.0,0.7609]
[1732094927723,3.75201,3123.1,3122.4,3.20264]
[1732094927889,4.072199,3123.1,3122.4,3.20264]
[1732094928386,0.870189,3123.1,3122.2,3.2028]
[1732094928592,3.20211,3123.0,3122.2,3.2028]
[1732094928804,0.55,3122.9,3122.2,3.2028]
[1732094929117,3.75221,3122.9,3122.2,3.2028]
[1732094929292,3.75221,3122.9,3122.2,3.20279]
[1732094929499,3.75221,3122.9,3122.3,3.20273]
[1732094930015,3.20252,3122.6,3121.9,3.3453436]
[1732094930222,0.55,3122.5,3121.9,0.1421836]
[1732094930514,0.55,3122.3,3121.9,0.1421836]
[1732094931719,0.55,3122.3,3122.1,3.20291]
[1732094931921,3.75258,3122.5,3121.9,0.1421836]
[1732094932280,4.127838,3122.5,3121.9,3.3453036]
[1732094932595,3.75307,3122.0,3121.9,0.1421836]
[1732094934421,0.55,3122.1,3121.9,0.1421836]
[1732094934721,3.75307,3122.0,3121.9,0.1421836]
[1732094937933,3.75307,3122.0,3120.3,8.20354999]
[1732094937934,0.55,3121.9,3120.2,0.3197]
[1732094938081,0.55,3121.2,3120.8,3.20426]
[1732094938481,0.55,3121.4,3120.8,3.98016]
[1732094938724,3.2034,3121.7,3121.0,3.20403]
[1732094938725,3.75349,3121.6,3121.0,3.20403]
[1732094938922,1.157695,3121.6,3121.0,3.20403]
[1732094939127,4.361215,3121.6,3121.0,3.20403]
[1732094939423,3.75352,3121.6,3121.0,3.20402]
[1732094939725,3.75341,3121.7,3121.1,3.20398]
[1732094940028,3.20332,3121.8,3121.1,3.15398]
[1732094940029,3.20328,3121.8,3121.1,3.15398]
[1732094940202,3.20328,3121.8,3120.6,3.20451]
[1732094940383,3.20311,3122.0,3121.4,3.20362]
[1732094941122,0.55,3121.9,3121.4,3.20362]
[1732094941489,0.55,3122.0,3121.5,3.20352]
[1732094941926,0.55,3122.0,3121.1,0.7872]
[1732094942233,0.320288,3122.1,3121.5,3.20353]
[1732094942566,0.320288,3122.1,3121.7,3.20337]
[1732094943251,3.75266,3122.4,3121.8,3.20326]
[1732094943556,3.20277,3122.3,3121.7,3.20337]
[1732094943760,0.55,3122.2,3121.7,3.20337]
[1732094943963,3.2114,3123.7,3122.4,3.2026]
[1732094944165,2.87354999,3123.6,3121.8,0.7516]
[1732094944462,3.20176,3123.3,3122.6,3.20239]
[1732094944671,0.320176,3123.2,3122.1,3.95453]
[1732094944822,3.20143,3123.6,3122.9,3.20206]
[1732094945026,3.20153,3123.5,3122.9,3.20206]
[1732094945252,3.20167,3123.4,3122.8,3.20224]
[1732094945560,3.20167,3123.4,3122.7,3.20231]
[1732094945759,3.20167,3123.4,3122.8,3.20223]
[1732094945961,3.20167,3123.4,3122.5,3.20252]
[1732094946261,3.20187,3123.2,3122.5,3.20252]
[1732094946447,4.072137,3123.1,3122.5,3.20252]
[1732094946763,0.55,3122.9,3122.3,3.20269]
[1732094947064,0.55,3122.9,3122.4,3.20266]
[1732094947261,0.55,3122.7,3122.2,0.7516]
[1732094947569,0.55,3122.7,3122.3,3.20269]
[1732094948735,0.55,3122.7,3122.2,0.7516]
[1732094948736,0.55,3122.7,3122.6,3.20245]
[1732094949169,0.55,3123.0,3122.4,3.20257]
[1732094949376,0.55,3123.0,3122.5,3.20254]
[1732094949755,0.320186,3123.1,3122.2,0.7516]
[1732094949994,3.2018,3123.3,3122.6,3.20237]
[1732094950162,3.2018,3123.3,3122.7,3.20233]
[1732094950365,0.32018,3123.2,3122.7,3.20233]
[1732094950665,0.32018,3123.2,3122.6,3.20237]
[1732094950886,3.52203,3123.2,3122.6,3.20237]
[1732094951072,3.20195,3123.1,3122.4,3.20263]
[1732094951397,3.20195,3123.1,3122.2,3.95445]
[1732094951398,3.20209,3123.0,3122.3,3.20269]
[1732094951572,0.55,3122.9,3122.3,3.20269]
[1732094952103,0.55,3122.9,3122.4,3.20264]
[1732094952661,3.75224,3122.9,3122.3,3.20276]
[1732094952980,3.75224,3122.9,3122.1,3.20289]
[1732094952981,0.55,3122.7,3122.1,3.20289]
[1732094953178,0.4127469,3122.6,3122.1,3.20289]
[1732094953366,0.55,3122.5,3122.2,3.20284]
[1732094953762,3.577469,3122.8,3122.2,3.20284]
[1732094953763,0.55,3122.7,3122.2,3.20284]
[1732094954197,0.55,3122.7,3122.0,3.20303]
[1732094954499,0.55,3122.5,3121.9,0.8279]
[1732094954701,0.55,3122.5,3122.0,3.20305]
[1732094955012,0.55,3122.5,3121.9,0.8279]
[1732094955303,3.75256,3122.5,3121.8,3.20324]
[1732094955606,0.55,3122.3,3121.8,3.20324]
[1732094956302,0.55,3122.3,3121.9,3.20315]
[1732094956462,0.55,3122.3,3121.8,3.20324]
[1732094956881,0.55,3122.3,3121.9,3.20315]
[1732094957405,0.55,3122.4,3121.8,6.40644]
[1732094957812,0.55,3122.5,3121.8,3.2032]
[1732094959188,0.55,3122.5,3121.6,0.8279]
[1732094959534,0.55,3122.5,3122.1,3.20297]
[1732094959688,3.522709,3122.6,3121.9,3.20312]
[1732094959885,3.5549049,3122.5,3121.9,3.20312]
[1732094960108,3.20268,3122.4,3121.9,3.20312]
[1732094960310,3.5549049,3122.5,3121.9,3.20312]
[1732094960524,0.35549049,3122.4,3121.9,3.20312]
[1732094960736,0.35549049,3122.4,3121.7,3.20338]
[1732094960935,3.75282,3122.3,3121.6,4.0313]
[1732094961410,3.20289,3122.2,3121.6,4.0313]
[1732094961727,0.55,3122.0,3121.5,3.20351]
[1732094962034,0.55,3122.0,3121.5,3.2035]
[1732094962187,0.55,3122.0,3121.4,3.20369]
[1732094962522,0.55,3122.0,3121.5,3.20349]
[1732094962901,0.55,3122.1,3121.3,0.7955]
[1732094963198,0.55,3122.3,3121.7,3.20332]
[1732094963389,3.75277,3122.3,3121.7,3.20332]
[1732094963792,3.20304,3122.1,3121.5,3.20354]
[1732094964028,0.55,3121.9,3121.5,3.20354]
[1732094966017,0.55,3121.9,3121.5,3.20351]
[1732094966529,3.75317,3121.9,3121.3,3.99924]
[1732094967308,0.55,3121.6,3121.1,3.20396]
[1732094967534,3.75352,3121.6,3121.1,3.20396]
[1732094967746,3.75352,3121.6,3120.9,3.98977]
[1732094967901,0.55,3121.3,3120.9,3.20417]
[1732094968267,0.55,3121.6,3120.6,0.7594]
[1732094968548,3.75349,3121.6,3121.0,3.20404]
[1732094968743,3.20312,3122.0,3121.0,3.20404]
[1732094968953,0.320292,3122.1,3121.5,3.20357]
[1732094969105,0.55,3122.1,3121.5,3.20357]
[1732094969307,3.75304,3122.1,3121.5,3.20357]
[1732094969621,0.55,3122.3,3121.2,3.20389]
[1732094969944,3.20263,3122.5,3121.3,3.26621116]
[1732094970151,3.20286,3122.3,3121.7,3.2033]
[1732094970648,3.2029,3122.2,3121.7,3.2033]
[1732094970857,3.20297,3122.1,3121.5,3.20349]
[1732094971146,3.52328,3122.1,3121.5,3.20349]
[1732094971519,0.55,3122.0,3121.5,3.20349]
[1732094971756,3.75307,3122.0,3121.5,3.20349]
[1732094972162,3.75307,3122.0,3121.3,3.20376]
[1732094972352,0.55,3121.8,3121.3,3.20376]
[1732094972948,3.75336,3121.8,3121.1,6.40788]
[1732094973155,3.75336,3121.8,3121.1,3.20393]
[1732094973485,0.55,3121.6,3121.1,3.20393]
[1732094974250,0.55,3121.6,3121.4,3.20368]
[1732094974552,3.75328,3121.8,3121.2,3.20381]
[1732094974747,4.4896486,3121.8,3121.2,3.20381]
[1732094975504,3.20348,3121.6,3121.1,3.20394]
[1732094975710,0.55,3121.5,3121.1,3.20394]
[1732094976765,0.55,3121.5,3121.0,3.20409]
[1732094977007,0.925348,3121.5,3121.0,3.20409]
[1732094977378,0.925348,3121.5,3120.7,3.95995]
[1732094977379,3.2037,3121.4,3120.7,3.95995]
[1732094977585,0.55,3121.3,3120.9,3.20418]
[1732094977792,0.9629048,3121.3,3120.9,3.20418]
[1732094979270,0.9629048,3121.3,3120.4,0.7556]
[1732094979470,0.55,3120.8,3120.5,3.20461]
[1732094979719,0.55,3120.8,3120.4,3.96031]
[1732094979894,6.40813,3121.1,3120.4,3.20471]
[1732094979895,0.55,3121.0,3120.4,3.20471]
[1732094980099,0.55,3121.0,3120.5,3.2046]
[1732094980625,3.20405,3121.1,3120.1,0.8332]
[1732094980626,0.55,3121.3,3120.8,3.20424]
[1732094980782,0.55,3121.3,3120.8,6.40847]
[1732094980982,0.55,3121.1,3120.9,3.20417]
[1732094981226,0.55,3121.1,3120.8,3.20423]
[1732094981933,0.55,3121.1,3120.6,3.96923]
[1732094982094,0.55,3121.1,3120.7,3.20434]
[1732094982283,0.9629272,3121.1,3120.7,3.20434]
[1732094982483,0.9629272,3121.1,3120.8,3.20427]
[1732094982720,3.75369,3121.4,3120.8,3.20427]
[1732094982925,3.20353,3121.6,3120.6,3.96929]
[1732094982926,0.55,3121.5,3121.1,3.20398]
[1732094983130,0.55,3121.5,3121.0,3.20409]
[1732094983309,0.55,3121.3,3120.8,3.20426]
[1732094983631,3.75379,3121.3,3120.8,3.20426]
[1732094984805,3.2039,3121.2,3120.6,3.96929]
[1732094984997,0.55,3121.1,3120.6,3.96929]
[1732094985523,0.55,3121.1,3120.6,3.96923]
[1732094985833,0.92539,3121.1,3120.6,3.96923]
[1732094986138,0.92539,3121.1,3120.8,3.20428]
[1732094986294,3.7539,3121.2,3120.6,3.96923]
[1732094986628,0.55,3121.0,3120.6,3.20443]
[1732094986840,0.55,3120.8,3120.5,3.2046]
[1732094987199,0.55,3121.0,3120.5,3.2046]
[1732094988234,4.129501,3121.0,3120.5,3.2046]
[1732094988594,0.925401,3121.0,3120.5,3.2046]
[1732094989010,0.55,3121.0,3120.5,3.2046]
[1732094989212,0.55,3121.0,3120.6,3.20448]
[1732094989637,0.55,3121.2,3120.7,3.2044]
[1732094990135,0.55,3121.2,3120.6,3.20448]
[1732094990136,3.75396,3121.2,3120.6,3.20449]
[1732094990296,0.55,3121.0,3120.6,3.20449]
[1732094990841,0.55,3121.0,3120.5,3.20455]
[1732094991037,0.9629393,3121.0,3120.5,3.20455]
[1732094992551,0.9629393,3121.0,3120.6,3.20444]
[1732094992833,3.20383,3121.3,3120.9,3.2042]
[1732094992834,0.55,3121.3,3120.9,3.2042]
[1732094993220,0.55,3121.5,3120.7,3.2044]
[1732094993622,0.55,3121.5,3120.3,3.99762]
[1732094993623,0.55,3121.0,3120.3,3.99762]
[1732094993825,0.55,3120.8,3120.3,7.20236]
[1732094994137,0.55,3120.8,3120.6,3.20444]
[1732094994314,0.55,3121.1,3120.6,3.20444]
[1732094994517,0.55,3120.9,3120.6,3.20444]
[1732094994900,0.55,3121.0,3120.6,3.20444]
[1732094995100,0.55,3121.0,3120.5,3.2046]
[1732094995440,3.75413,3121.0,3120.5,3.2046]
[1732094995615,4.449943,3121.0,3120.5,3.2046]
[1732094995964,3.75413,3121.0,3120.5,3.2046]
[1732094996595,3.75413,3121.0,3120.3,3.99771]
[1732094996797,3.75413,3121.0,3120.4,3.20466]
[1732094999428,3.75413,3121.0,3120.5,3.2046]
[1732095000329,4.15548911,3121.0,3120.5,3.2046]
[1732095000530,0.55,3121.0,3120.7,3.20436]
[1732095000713,3.20365,3121.5,3120.7,3.20436]
[1732095000918,0.870365,3121.4,3120.7,3.20436]
[1732095001113,0.55,3121.4,3120.4,3.20471]
[1732095001320,0.55,3121.4,3120.3,0.7929]
[1732095001321,3.20325,3121.9,3121.2,3.20382]
[1732095001519,3.20325,3121.9,3121.3,3.20372]
[1732095001856,3.20258,3122.5,3121.6,3.20339]
[1732095001857,3.20259,3122.5,3121.6,3.20339]
[1732095002362,3.20304,3122.1,3121.5,3.20358]
[1732095002531,0.320304,3122.0,3121.5,3.20356]
[1732095003041,3.20281,3122.3,3121.7,3.20331]
[1732095003240,3.2026,3122.5,3121.8,3.20323]
[1732095003564,0.32026,3122.4,3121.8,3.20323]
[1732095003867,0.32026,3122.4,3122.0,3.20307]
[1732095004072,3.2024,3122.7,3122.0,3.20307]
[1732095004370,3.2024,3122.7,3122.0,2.88269]
[1732095005058,3.20221,3122.9,3122.2,2.88257]
[1732095005272,0.320216,3122.8,3122.3,2.8824]
[1732095005588,0.320216,3122.8,3122.4,2.88235]
[1732095005805,0.3522426,3122.7,3122.4,2.88235]
[1732095005941,0.3522426,3122.7,3122.2,2.88253]
[1732095006245,0.3522426,3122.7,3122.5,2.88229]
[1732095006588,3.20201,3123.1,3122.4,2.88233]
[1732095006769,3.20213,3123.0,3122.4,2.88233]
[1732095007149,6.07504999,3123.6,3122.0,0.7733]
[1732095007150,3.20169,3123.4,3122.0,3.65603]
[1732095007346,3.2025,3122.6,3121.8,2.88291]
[1732095007545,0.55,3122.1,3121.6,2.88311]
[1732095007746,0.55,3122.1,3121.4,3.65659]
[1732095007747,0.55,3121.9,3121.4,3.65659]
[1732095008048,0.55,3121.9,3121.5,2.88322]
[1732095008243,0.55,3122.1,3121.5,2.88322]
[1732095008450,0.55,3122.1,3121.6,2.8831]
[1732095008649,0.55,3122.3,3121.7,2.88297]
[1732095008872,3.75277,3122.3,3121.7,2.88297]
[1732095009322,0.55,3122.4,3121.7,2.88297]
[1732095009454,0.55,3122.5,3121.9,2.88284]
[1732095009850,0.55,3122.5,3122.1,2.88262]
[1732095010075,0.55,3122.7,3121.8,2.88294]
[1732095010277,0.55,3122.5,3121.9,2.8828]
[1732095010451,0.55,3122.5,3122.0,2.88274]
[1732095010651,0.55,3122.3,3122.0,2.88274]
[1732095010975,0.55,3122.3,3122.1,2.88267]
[1732095011283,0.55,3122.3,3122.1,2.88259]
[1732095011787,0.55,3122.6,3121.9,0.8327]
[1732095011951,0.55,3122.7,3122.2,2.88256]
[1732095012156,0.375229,3122.6,3122.1,2.88262]
[1732095012383,3.58609305,3122.9,3122.1,2.88262]
[1732095012687,3.58609305,3122.9,3122.3,2.88248]
[1732095013668,0.55,3122.8,3122.3,2.88248]
[1732095013868,0.55,3122.8,3122.1,5.76522]
[1732095014102,3.75226,3122.8,3122.1,2.8826]
[1732095014320,3.20256,3122.5,3122.0,2.88274]
[1732095014612,0.55,3122.6,3122.0,2.88274]
[1732095014613,3.75247,3122.6,3122.0,2.88274]
[1732095014902,3.75247,3122.6,3122.1,2.88267]
[1732095015112,3.20289,3122.2,3121.7,0.06056777]
[1732095015402,3.75299,3122.1,3121.3,2.8834]
[1732095015577,3.20318,3121.9,3121.1,2.88359]
[1732095015779,3.20318,3121.9,3121.3,2.88339]
[1732095015780,0.55,3121.8,3121.3,2.88339]
[1732095016779,3.578498,3121.9,3120.9,2.88377]
[1732095016780,0.55,3121.4,3120.9,2.88377]
[1732095016986,3.75369,3121.4,3120.7,2.8839]
[1732095017212,3.2036,3121.5,3120.9,2.88377]
[1732095017417,0.55,3121.4,3120.9,2.88377]
[1732095017721,3.75375,3121.4,3120.7,2.8839]
[1732095017886,0.55,3121.2,3120.8,2.88384]
[1732095018392,0.55,3121.4,3120.8,2.88384]
[1732095018595,0.55,3121.4,3120.9,2.88377]
[1732095018811,3.20357,3121.6,3121.0,2.88366]
[1732095019181,3.20329,3121.8,3121.1,2.88359]
[1732095019601,3.20266,3122.4,3120.9,2.8837]
[1732095019813,3.20355,3121.6,3121.0,2.88368]
[1732095020219,3.20355,3121.6,3120.8,2.8838]
[1732095020423,0.55,3121.3,3120.8,2.8838]
[1732095020621,0.55,3121.3,3120.7,2.88393]
[1732095020813,0.55,3121.3,3120.8,2.88385]
[1732095021313,0.55,3121.3,3120.7,2.88394]
[1732095022032,0.55,3121.3,3120.7,5.76783]
[1732095022328,0.55,3121.3,3120.7,2.88389]
[1732095022698,0.55,3121.3,3120.7,5.76778]
[1732095022883,0.55,3121.3,3120.7,2.88389]
[1732095023387,3.75386,3121.3,3120.7,2.88389]
[1732095024029,0.55,3121.3,3120.7,2.88389]
[1732095024185,0.55,3121.3,3120.6,0.765]
[1732095024406,0.55,3121.5,3120.9,2.8837]
[1732095024606,3.7536,3121.5,3120.9,2.8837]
[1732095024929,3.75344,3121.7,3120.9,2.8837]
[1732095025130,3.75344,3121.7,3121.1,2.88359]
[1732095025352,0.55,3121.7,3121.2,2.88343]
[1732095025511,3.75329,3121.8,3121.2,2.88343]
[1732095025849,1.178,3122.2,3121.3,2.88339]
[1732095025850,3.20323,3121.9,3121.3,2.88339]
[1732095026216,3.20323,3121.9,3121.4,2.88331]
[1732095026429,3.20302,3122.1,3121.5,2.88322]
[1732095026628,3.2028,3122.3,3121.6,2.88313]
[1732095026947,3.20288,3122.2,3121.6,2.88313]
[1732095027419,3.20288,3122.2,3121.4,2.88331]